fUSD/lending_fUSD_20260606
["ID","MTS","AMOUNT","RATE_DAILY","PERIOD"]
[424227824,1780675349000,168.72576097,0.0002698,120]
[424227829,1780675470000,-500.43121743,0.00013698,2]
[424227831,1780675470000,-500.0,0.00013698,2]
[424227832,1780675470000,-17.51878257,0.00013698,2]
[424227830,1780675470000,-500.0,0.00013698,2]
[424227866,1780675810000,152.0,0.00029397,120]
[424227867,1780675830000,152.0,0.00029397,120]
[424227896,1780675833000,-482.48121743,0.00013698,2]
[424227894,1780675833000,-500.0,0.00013697,2]
[424227893,1780675833000,-462.65124931,0.00013697,2]
[424227895,1780675833000,-289.44208717,0.00013697,2]
[424227892,1780675833000,-500.0,0.00013697,2]
[424227891,1780675833000,-202.3897187,0.00013697,2]
[424227889,1780675833000,-458.51007456,0.00013697,2]
[424227901,1780675833000,-5598.98415454,0.00013698,2]
[424227900,1780675833000,-500.0,0.00013698,2]
[424227899,1780675833000,-500.0,0.00013698,2]
[424227897,1780675833000,-500.0,0.00013698,2]
[424227898,1780675833000,-500.0,0.00013698,2]
[424227885,1780675833000,-250.0,0.00013663,2]
[424227884,1780675833000,-171.81,0.00013613,2]
[424227886,1780675833000,-500.0,0.00013697,2]
[424227888,1780675833000,-41.48992544,0.00013697,2]
[424227887,1780675833000,-464.94283256,0.00013697,2]
[424227883,1780675833000,-318.402408,0.00013544,2]
[424227882,1780675833000,-152.0,8.9e-05,2]
[424227903,1780675833000,-1356.23989523,0.00013698,2]
[424227902,1780675833000,-36304.09270929,0.00013698,2]
[424227890,1780675833000,-239.79503063,0.00013697,2]
[424227905,1780675833000,-4013.10844987,0.00013698,2]
[424227904,1780675833000,-987.95536,0.00013698,2]
[424227936,1780675833000,-1643.9875,0.00014835,2]
[424227932,1780675833000,-52164.70536762,0.00014835,2]
[424227930,1780675833000,-7396.34973283,0.00014834,2]
[424227920,1780675833000,-300.0,0.00013715,2]
[424227918,1780675833000,-300.0,0.00013715,2]
[424227915,1780675833000,-444.0,0.00013698,2]
[424227916,1780675833000,-303.12676696,0.00013698,2]
[424227926,1780675833000,-150.0,0.00013993,2]
[424227923,1780675833000,-150.0,0.00013856,2]
[424227928,1780675833000,-150.0,0.00014131,2]
[424227922,1780675833000,-160.0,0.00013785,2]
[424227906,1780675833000,-258.04539447,0.00013698,2]
[424227914,1780675833000,-647.37198597,0.00013698,2]
[424227909,1780675833000,-6978.07341399,0.00013698,2]
[424227907,1780675833000,-3009.30346329,0.00013698,2]
[424227908,1780675833000,-44059.86381905,0.00013698,2]
[424227912,1780675833000,-444.0,0.00013698,2]
[424227910,1780675833000,-451.0,0.00013698,2]
[424227913,1780675833000,-443.0,0.00013698,2]
[424227911,1780675833000,-447.0,0.00013698,2]
[424227961,1780675838000,-4688.96542283,0.00014835,2]
[424227962,1780675838000,-1393.70538923,0.00014835,2]
[424227963,1780675838000,-398.95485508,0.00014835,2]
[424228060,1780675839000,-2000.0,0.00017699,2]
[424228059,1780675839000,-418.77,0.00017664,2]
[424228061,1780675839000,-1000.0,0.00017716,2]
[424228057,1780675839000,-7396.34973277,0.00017604,2]
[424228054,1780675839000,-166.66,0.00017293,2]
[424228053,1780675839000,-1035.27102422,0.0001715,2]
[424228056,1780675839000,-1613.0535,0.00017513,2]
[424228063,1780675839000,-152.95,0.000178,2]
[424228052,1780675839000,-534.46579654,0.00017045,2]
[424228047,1780675839000,-1500.0,0.00016417,2]
[424228055,1780675839000,-3722.41,0.00017298,2]
[424228058,1780675839000,-166.66,0.00017649,2]
[424228073,1780675839000,-166.66,0.00018362,2]
[424228062,1780675839000,-2416.07,0.00017745,2]
[424228066,1780675839000,-177.55,0.00017925,2]
[424228075,1780675839000,-279.1725733,0.0001843,2]
[424228074,1780675839000,-848.8,0.0001841,2]
[424228076,1780675839000,-418.77,0.00018548,2]
[424228077,1780675839000,-1734.62772924,0.00018609,2]
[424228067,1780675839000,-509.49,0.00017973,2]
[424228068,1780675839000,-166.66,0.00018006,2]
[424228071,1780675839000,-6214.67,0.0001813,2]
[424228065,1780675839000,-1852.42,0.00017908,2]
[424228069,1780675839000,-1672.7364795,0.00018061,2]
[424228048,1780675839000,-848.8,0.00016438,2]
[424228064,1780675839000,-159.1,0.00017817,2]
[424228045,1780675839000,-8269.73,0.00016116,2]
[424228026,1780675839000,-1262.88254727,0.00014835,2]
[424228049,1780675839000,-188.53,0.000169,2]
[424228022,1780675839000,-4311.82689031,0.00014835,2]
[424228023,1780675839000,-1185.1103,0.00014835,2]
[424228025,1780675839000,-1000.0,0.00014835,2]
[424228072,1780675839000,-166.67,0.00018352,2]
[424228024,1780675839000,-1395.33024752,0.00014835,2]
[424228028,1780675839000,-2393539.77296778,0.00014835,2]
[424228038,1780675839000,-300.0,0.00014992,2]
[424228027,1780675839000,-37014.75851236,0.00014835,2]
[424228031,1780675839000,-150.99,0.00014935,2]
[424228032,1780675839000,-1020.47,0.00014935,2]
[424228036,1780675839000,-501.62,0.00014935,2]
[424228037,1780675839000,-9999.99,0.00014935,2]
[424228033,1780675839000,-208.6,0.00014935,2]
[424228029,1780675839000,-16629.28145878,0.00014934,2]
[424228030,1780675839000,-1108.22,0.00014935,2]
[424228035,1780675839000,-13434.42,0.00014935,2]
[424228034,1780675839000,-24999.99,0.00014935,2]
[424228040,1780675839000,-250.0,0.00014992,2]
[424228039,1780675839000,-300.0,0.00014992,2]
[424228050,1780675839000,-166.66,0.00016936,2]
[424228043,1780675839000,-200.0,0.00015119,2]
[424228042,1780675839000,-250.0,0.00015068,2]
[424228051,1780675839000,-1555.5,0.00016965,2]
[424228041,1780675839000,-300.0,0.00015068,2]
[424228044,1780675839000,-200.0,0.0001552,2]
[424228046,1780675839000,-7396.34973277,0.00016219,2]
[424228089,1780675839000,-759.24,0.00019963,3]
[424228070,1780675839000,-418.77,0.00018106,2]
[424228081,1780675839000,-225.07,0.0001914,2]
[424228111,1780675839000,-2067.0,0.0002,2]
[424228113,1780675839000,-749.0,0.0002,2]
[424228114,1780675839000,-186.0,0.00020095,3]
[424228115,1780675839000,-214.856362,0.00020188,2]
[424228116,1780675839000,-166.773469,0.00020188,2]
[424228118,1780675839000,-1934.38338736,0.00020253,2]
[424228125,1780675839000,-4000.0,0.000203,2]
[424228126,1780675839000,-2014.8804654,0.000203,2]
[424228127,1780675839000,-1001.6312803,0.00020353,2]
[424228128,1780675839000,-166.67,0.00020371,2]
[424228117,1780675839000,-173.69185898,0.000202,2]
[424228123,1780675839000,-158.00728758,0.000203,2]
[424228109,1780675839000,-395.0,0.0002,2]
[424228122,1780675839000,-2000.0,0.000203,2]
[424228119,1780675839000,-2500.0,0.00020285,2]
[424228120,1780675839000,-673.81,0.000203,7]
[424228124,1780675839000,-6731.92469511,0.000203,2]
[424228129,1780675839000,-848.8,0.00020381,2]
[424228131,1780675839000,-2146.23493786,0.00020386,2]
[424228132,1780675839000,-1366.0,0.00020388,2]
[424228134,1780675839000,-198.43026476,0.00020397,10]
[424228130,1780675839000,-164.0,0.00020384,2]
[424228135,1780675839000,-500.0,0.00020399,2]
[424228136,1780675839000,-258.0,0.00020399,2]
[424228137,1780675839000,-500.0,0.00020399,2]
[424228079,1780675839000,-418.77,0.00018989,2]
[424228121,1780675839000,-33256.6326,0.000203,2]
[424228108,1780675839000,-1864.0,0.0002,2]
[424228133,1780675839000,-194.09368115,0.00020397,2]
[424228112,1780675839000,-81902.06,0.0002,2]
[424228107,1780675839000,-282.0,0.0002,2]
[424228080,1780675839000,-7396.34973277,0.00018989,2]
[424228082,1780675839000,-1798.80895522,0.00019157,2]
[424228083,1780675839000,-166.67,0.00019362,2]
[424228078,1780675839000,-166.66,0.00018719,2]
[424228084,1780675839000,-418.77,0.00019431,2]
[424228088,1780675839000,-253.08,0.00019963,3]
[424228086,1780675839000,-150.0,0.00019877,2]
[424228087,1780675839000,-2000.0,0.00019911,2]
[424228091,1780675839000,-27119.94,0.00019973,2]
[424228102,1780675839000,-585.0,0.0002,2]
[424228103,1780675839000,-235.0,0.0002,2]
[424228085,1780675839000,-1865.36488656,0.00019705,2]
[424228104,1780675839000,-1478.0,0.0002,2]
[424228101,1780675839000,-406.0,0.0002,2]
[424228110,1780675839000,-394.0,0.0002,2]
[424228106,1780675839000,-483.0,0.0002,2]
[424228105,1780675839000,-1472.0,0.0002,2]
[424228095,1780675839000,-500.0,0.00019999,2]
[424228097,1780675839000,-500.0,0.00019999,2]
[424228092,1780675839000,-200.42,0.00019979,2]
[424228100,1780675839000,-157.369907,0.0002,2]
[424228093,1780675839000,-500.0,0.00019999,2]
[424228099,1780675839000,-173.69185898,0.0002,2]
[424228090,1780675839000,-500.0,0.00019972,2]
[424228098,1780675839000,-500.0,0.00019999,2]
[424228208,1780675840000,-1500000.0,0.000204,2]
[424228206,1780675840000,-173.69185898,0.000204,2]
[424228205,1780675840000,-500.0,0.00020399,2]
[424228197,1780675840000,-605.64,0.00020399,2]
[424228200,1780675840000,-500.0,0.00020399,2]
[424228203,1780675840000,-150.0,0.00020399,2]
[424228201,1780675840000,-500.0,0.00020399,2]
[424228202,1780675840000,-500.0,0.00020399,2]
[424228207,1780675840000,-499.5654,0.000204,2]
[424228199,1780675840000,-500.0,0.00020399,2]
[424228204,1780675840000,-250.0,0.00020399,2]
[424228210,1780675840000,-1227.0,0.00020441,2]
[424228211,1780675840000,-6072.0,0.00020441,2]
[424228217,1780675840000,-1346.0,0.00020493,2]
[424228220,1780675840000,-194.09368115,0.00020497,2]
[424228219,1780675840000,-1370.0,0.00020494,2]
[424228209,1780675840000,-500.0,0.000204,2]
[424228212,1780675840000,-933.0,0.00020441,2]
[424228215,1780675840000,-350.0,0.00020493,3]
[424228216,1780675840000,-641.01128664,0.00020493,2]
[424228213,1780675840000,-151.0,0.00020493,2]
[424228214,1780675840000,-405.0,0.00020493,2]
[424228221,1780675840000,-1373.0,0.00020499,2]
[424228198,1780675840000,-500.0,0.00020399,2]
[424228223,1780675840000,-500.0,0.00020499,2]
[424228218,1780675840000,-1336.0,0.00020494,2]
[424228196,1780675840000,-500.0,0.00020399,2]
[424228164,1780675840000,-500.0,0.00020399,2]
[424228189,1780675840000,-362.42,0.00020399,2]
[424228224,1780675840000,-500.0,0.00020499,2]
[424228139,1780675840000,-500.0,0.00020399,2]
[424228140,1780675840000,-500.0,0.00020399,2]
[424228138,1780675840000,-500.0,0.00020399,2]
[424228141,1780675840000,-500.0,0.00020399,2]
[424228143,1780675840000,-500.0,0.00020399,2]
[424228153,1780675840000,-500.0,0.00020399,2]
[424228155,1780675840000,-500.0,0.00020399,2]
[424228159,1780675840000,-500.0,0.00020399,2]
[424228157,1780675840000,-500.0,0.00020399,2]
[424228162,1780675840000,-500.0,0.00020399,2]
[424228166,1780675840000,-500.0,0.00020399,2]
[424228193,1780675840000,-500.0,0.00020399,2]
[424228149,1780675840000,-500.0,0.00020399,2]
[424228151,1780675840000,-500.0,0.00020399,2]
[424228168,1780675840000,-500.0,0.00020399,2]
[424228187,1780675840000,-500.0,0.00020399,2]
[424228181,1780675840000,-500.0,0.00020399,2]
[424228186,1780675840000,-500.0,0.00020399,2]
[424228183,1780675840000,-500.0,0.00020399,2]
[424228170,1780675840000,-500.0,0.00020399,2]
[424228172,1780675840000,-188.1578113,0.00020399,2]
[424228179,1780675840000,-500.0,0.00020399,2]
[424228176,1780675840000,-500.0,0.00020399,2]
[424228191,1780675840000,-500.0,0.00020399,2]
[424228174,1780675840000,-500.0,0.00020399,2]
[424228144,1780675840000,-500.0,0.00020399,2]
[424228222,1780675840000,-599.05,0.00020499,2]
[424228146,1780675840000,-500.0,0.00020399,2]
[424228230,1780675840000,-500.0,0.00020499,2]
[424228255,1780675840000,-2005.9555727,0.00020801,2]
[424228257,1780675840000,-1128.73,0.00020979,2]
[424228263,1780675840000,-406.0,0.00021,2]
[424228260,1780675840000,-1169.0,0.00021,2]
[424228261,1780675840000,-284.0,0.00021,2]
[424228259,1780675840000,-166.66,0.00020985,2]
[424228270,1780675840000,-1864.0,0.00021,2]
[424228267,1780675840000,-1472.0,0.00021,2]
[424228269,1780675840000,-282.0,0.00021,2]
[424228262,1780675840000,-472.87256915,0.00021,2]
[424228282,1780675840000,-663.83414893,0.00021336,2]
[424228268,1780675840000,-483.0,0.00021,2]
[424228253,1780675840000,-19166.3745444,0.00020755,2]
[424228264,1780675840000,-585.0,0.00021,2]
[424228265,1780675840000,-235.0,0.00021,2]
[424228278,1780675840000,-500.0,0.00021288,2]
[424228280,1780675840000,-506.16,0.00021333,3]
[424228272,1780675840000,-394.0,0.00021,2]
[424228279,1780675840000,-2321.0,0.00021315,5]
[424228271,1780675840000,-395.0,0.00021,2]
[424228273,1780675840000,-2067.0,0.00021,2]
[424228274,1780675840000,-749.0,0.00021,2]
[424228277,1780675840000,-472.87256915,0.000212,2]
[424228275,1780675840000,-6731.92469508,0.00021078,2]
[424228276,1780675840000,-581.08,0.00021114,2]
[424228231,1780675840000,-374.7,0.00020499,2]
[424228266,1780675840000,-1478.0,0.00021,2]
[424228258,1780675840000,-1183.41,0.00020979,2]
[424228281,1780675840000,-157.369907,0.00021333,2]
[424228250,1780675840000,-1465.57907104,0.000206,2]
[424228256,1780675840000,-151.0,0.00020921,2]
[424228228,1780675840000,-500.0,0.00020499,2]
[424228227,1780675840000,-500.0,0.00020499,2]
[424228225,1780675840000,-500.0,0.00020499,2]
[424228229,1780675840000,-500.0,0.00020499,2]
[424228226,1780675840000,-500.0,0.00020499,2]
[424228233,1780675840000,-500.0,0.00020499,2]
[424228235,1780675840000,-500.0,0.00020499,2]
[424228245,1780675840000,-1273.0,0.00020572,2]
[424228236,1780675840000,-500.0,0.00020499,2]
[424228242,1780675840000,-188.0,0.00020572,2]
[424228241,1780675840000,-150.0,0.00020572,2]
[424228244,1780675840000,-452.0,0.00020572,2]
[424228232,1780675840000,-500.0,0.00020499,2]
[424228234,1780675840000,-496.36,0.00020499,2]
[424228249,1780675840000,-198.43026476,0.00020599,10]
[424228243,1780675840000,-3553.0,0.00020572,2]
[424228248,1780675840000,-425.80778009,0.00020599,2]
[424228254,1780675840000,-194.09368115,0.00020796,2]
[424228251,1780675840000,-180582.95508246,0.000206,2]
[424228247,1780675840000,-170.99510782,0.0002058,2]
[424228252,1780675840000,-240.34,0.00020682,2]
[424228246,1780675840000,-150.0,0.0002058,2]
[424228240,1780675840000,-225.07,0.0002051,2]
[424228237,1780675840000,-502.08,0.00020499,2]
[424228238,1780675840000,-500.0,0.00020499,2]
[424228239,1780675840000,-665.03,0.00020499,2]
[424228311,1780675841000,-151.0,0.00021349,2]
[424228312,1780675841000,-500.0,0.00021349,2]
[424228313,1780675841000,-151.0,0.00021349,2]
[424228306,1780675841000,-151.0,0.00021349,2]
[424228310,1780675841000,-151.0,0.00021349,2]
[424228305,1780675841000,-151.0,0.00021349,2]
[424228309,1780675841000,-500.0,0.00021349,2]
[424228320,1780675841000,-151.0,0.00021349,2]
[424228314,1780675841000,-151.0,0.00021349,2]
[424228317,1780675841000,-151.0,0.00021349,2]
[424228316,1780675841000,-151.0,0.00021349,2]
[424228318,1780675841000,-500.0,0.00021349,2]
[424228322,1780675841000,-500.0,0.00021349,2]
[424228308,1780675841000,-151.0,0.00021349,2]
[424228319,1780675841000,-151.0,0.00021349,2]
[424228315,1780675841000,-500.0,0.00021349,2]
[424228307,1780675841000,-500.0,0.00021349,2]
[424228287,1780675841000,-151.0,0.00021349,2]
[424228300,1780675841000,-151.0,0.00021349,2]
[424228321,1780675841000,-151.0,0.00021349,2]
[424228284,1780675841000,-151.0,0.00021349,2]
[424228283,1780675841000,-151.0,0.00021349,2]
[424228285,1780675841000,-200.0,0.00021349,2]
[424228286,1780675841000,-151.0,0.00021349,2]
[424228288,1780675841000,-151.0,0.00021349,2]
[424228290,1780675841000,-151.0,0.00021349,2]
[424228301,1780675841000,-151.0,0.00021349,2]
[424228294,1780675841000,-151.0,0.00021349,2]
[424228292,1780675841000,-151.0,0.00021349,2]
[424228296,1780675841000,-2080.17592889,0.00021349,2]
[424228303,1780675841000,-151.0,0.00021349,2]
[424228304,1780675841000,-500.0,0.00021349,2]
[424228298,1780675841000,-151.0,0.00021349,2]
[424228299,1780675841000,-151.0,0.00021349,2]
[424228302,1780675841000,-151.0,0.00021349,2]
[424228293,1780675841000,-151.0,0.00021349,2]
[424228324,1780675841000,-151.0,0.00021349,2]
[424228326,1780675841000,-151.0,0.00021349,2]
[424228359,1780675841000,-1864.0,0.00022,2]
[424228345,1780675841000,-5000.0,0.00021918,2]
[424228347,1780675841000,-500.0,0.00021945,2]
[424228346,1780675841000,-200.0,0.00021918,2]
[424228350,1780675841000,-450.0,0.00022,2]
[424228351,1780675841000,-406.0,0.00022,2]
[424228352,1780675841000,-585.0,0.00022,2]
[424228353,1780675841000,-235.0,0.00022,2]
[424228343,1780675841000,-2157.14243826,0.00021897,2]
[424228358,1780675841000,-922.99,0.00022,2]
[424228355,1780675841000,-1472.0,0.00022,2]
[424228356,1780675841000,-483.0,0.00022,2]
[424228357,1780675841000,-282.0,0.00022,2]
[424228361,1780675841000,-394.0,0.00022,2]
[424228360,1780675841000,-395.0,0.00022,2]
[424228362,1780675841000,-2067.0,0.00022,2]
[424228323,1780675841000,-151.0,0.00021349,2]
[424228354,1780675841000,-1478.0,0.00022,2]
[424228349,1780675841000,-284.0,0.00022,2]
[424228344,1780675841000,-472.87256915,0.000219,2]
[424228348,1780675841000,-1169.0,0.00022,2]
[424228325,1780675841000,-500.0,0.00021349,2]
[424228327,1780675841000,-151.0,0.00021349,2]
[424228329,1780675841000,-151.0,0.00021349,2]
[424228330,1780675841000,-500.0,0.00021349,2]
[424228341,1780675841000,-151.0,0.00021897,2]
[424228328,1780675841000,-500.0,0.00021349,2]
[424228334,1780675841000,-544.45,0.0002142,2]
[424228332,1780675841000,-166.67,0.00021381,2]
[424228331,1780675841000,-500.0,0.00021349,2]
[424228333,1780675841000,-472.87256915,0.000214,2]
[424228335,1780675841000,-606.42,0.0002142,2]
[424228337,1780675841000,-472.87256915,0.000216,2]
[424228338,1780675841000,-6731.92469508,0.00021856,2]
[424228342,1780675841000,-200.0,0.00021897,2]
[424228339,1780675841000,-163.11677811,0.00021883,7]
[424228336,1780675841000,-166.66,0.00021596,2]
[424228340,1780675841000,-163.1167781,0.00021883,14]
[424228400,1780675842000,-483.0,0.00023,2]
[424228404,1780675842000,-394.0,0.00023,2]
[424228397,1780675842000,-235.0,0.00023,2]
[424228403,1780675842000,-395.0,0.00023,2]
[424228391,1780675842000,-800.0,0.00023,8]
[424228396,1780675842000,-585.0,0.00023,2]
[424228390,1780675842000,-800.0,0.00023,8]
[424228395,1780675842000,-406.0,0.00023,2]
[424228399,1780675842000,-1472.0,0.00023,2]
[424228394,1780675842000,-800.0,0.00023,8]
[424228401,1780675842000,-282.0,0.00023,2]
[424228407,1780675842000,-163.11677811,0.00023196,7]
[424228414,1780675842000,-151.0,0.00023541,2]
[424228405,1780675842000,-2067.0,0.00023,2]
[424228398,1780675842000,-1478.0,0.00023,2]
[424228402,1780675842000,-1864.0,0.00023,2]
[424228409,1780675842000,-6731.92469508,0.00023411,2]
[424228418,1780675842000,-150.0,0.00023572,2]
[424228415,1780675842000,-200.0,0.00023541,2]
[424228412,1780675842000,-6072.0,0.00023441,2]
[424228411,1780675842000,-1227.0,0.00023441,2]
[424228410,1780675842000,-200.0,0.00023413,2]
[424228417,1780675842000,-150.0,0.00023572,2]
[424228419,1780675842000,-483.142,0.00023572,2]
[424228387,1780675842000,-800.0,0.00023,8]
[424228406,1780675842000,-749.0,0.00023,2]
[424228388,1780675842000,-800.0,0.00023,8]
[424228371,1780675842000,-151.0,0.00022445,2]
[424228393,1780675842000,-800.0,0.00023,8]
[424228364,1780675842000,-2000.0,0.00022124,2]
[424228363,1780675842000,-749.0,0.00022,2]
[424228365,1780675842000,-7500.0,0.000223,3]
[424228367,1780675842000,-177.55,0.00022363,2]
[424228366,1780675842000,-848.8,0.00022353,2]
[424228368,1780675842000,-475.45134866,0.00022407,2]
[424228370,1780675842000,-475.45134863,0.00022407,2]
[424228369,1780675842000,-475.45134863,0.00022407,2]
[424228372,1780675842000,-200.0,0.00022445,2]
[424228373,1780675842000,-2236.95670847,0.00022445,2]
[424228375,1780675842000,-163.11677811,0.00022539,7]
[424228392,1780675842000,-800.0,0.00023,8]
[424228374,1780675842000,-2021.45,0.000225,14]
[424228377,1780675842000,-6731.92469508,0.00022633,2]
[424228382,1780675842000,-2319.72410669,0.00022993,2]
[424228379,1780675842000,-157.369907,0.00022667,2]
[424228384,1780675842000,-284.0,0.00023,2]
[424228383,1780675842000,-1169.0,0.00023,2]
[424228378,1780675842000,-200.0,0.00022636,2]
[424228380,1780675842000,-151.0,0.00022993,2]
[424228381,1780675842000,-200.0,0.00022993,2]
[424228385,1780675842000,-800.0,0.00023,8]
[424228389,1780675842000,-800.0,0.00023,8]
[424228386,1780675842000,-421.8848949,0.00023,8]
[424228376,1780675842000,-163.1167781,0.00022539,14]
[424228413,1780675842000,-933.0,0.00023441,2]
[424228460,1780675842000,-151.0,0.00023797,2]
[424228416,1780675842000,-2405.55389863,0.00023541,2]
[424228453,1780675842000,-152.0,0.00023742,2]
[424228457,1780675842000,-152.0,0.00023742,2]
[424228455,1780675842000,-152.0,0.00023742,2]
[424228454,1780675842000,-152.0,0.00023742,2]
[424228451,1780675842000,-152.0,0.00023742,2]
[424228456,1780675842000,-152.0,0.00023742,2]
[424228458,1780675842000,-152.0,0.00023742,2]
[424228461,1780675842000,-4314.28487652,0.00023797,2]
[424228464,1780675842000,-4473.91341695,0.00023852,2]
[424228465,1780675842000,-160.89900141,0.00023887,2]
[424228466,1780675842000,-773.24136889,0.00023907,2]
[424228463,1780675842000,-151.0,0.00023852,2]
[424228467,1780675842000,-151.0,0.00023907,2]
[424228469,1780675842000,-801.85129954,0.00023962,2]
[424228473,1780675842000,-284.0,0.00024,2]
[424228475,1780675842000,-157.369907,0.00024,2]
[424228470,1780675842000,-151.0,0.00023962,2]
[424228476,1780675842000,-406.0,0.00024,2]
[424228471,1780675842000,-4811.10779727,0.00023962,2]
[424228474,1780675842000,-500.0,0.00024,2]
[424228477,1780675842000,-585.0,0.00024,2]
[424228479,1780675842000,-1478.0,0.00024,2]
[424228478,1780675842000,-235.0,0.00024,2]
[424228408,1780675842000,-163.1167781,0.00023196,14]
[424228472,1780675842000,-1169.0,0.00024,2]
[424228459,1780675842000,-719.04747942,0.00023797,2]
[424228468,1780675842000,-4639.44821338,0.00023907,2]
[424228452,1780675842000,-155.45074961,0.00023742,2]
[424228421,1780675842000,-437.0,0.00023572,2]
[424228462,1780675842000,-745.65223615,0.00023852,2]
[424228430,1780675842000,-209.40437684,0.00023742,2]
[424228429,1780675842000,-578.20924308,0.00023742,2]
[424228431,1780675842000,-151.0,0.00023742,2]
[424228432,1780675842000,-693.39197629,0.00023742,2]
[424228433,1780675842000,-1000.0,0.00023742,2]
[424228426,1780675842000,-209.40437684,0.00023742,2]
[424228434,1780675842000,-200.0,0.00023742,2]
[424228425,1780675842000,-693.39197629,0.00023742,2]
[424228428,1780675842000,-174.61919141,0.00023742,2]
[424228427,1780675842000,-743.50770149,0.00023742,2]
[424228435,1780675842000,-1000.0,0.00023742,2]
[424228423,1780675842000,-1273.0,0.00023572,2]
[424228444,1780675842000,-152.0,0.00023742,2]
[424228446,1780675842000,-4160.35185778,0.00023742,2]
[424228450,1780675842000,-721.12765534,0.00023742,2]
[424228447,1780675842000,-152.0,0.00023742,2]
[424228449,1780675842000,-152.0,0.00023742,2]
[424228445,1780675842000,-200.0,0.00023742,2]
[424228448,1780675842000,-209.40437684,0.00023742,2]
[424228436,1780675842000,-1000.0,0.00023742,2]
[424228438,1780675842000,-500.0,0.00023742,2]
[424228440,1780675842000,-152.0,0.00023742,2]
[424228442,1780675842000,-618.12912752,0.00023742,2]
[424228443,1780675842000,-151.0,0.00023742,2]
[424228526,1780675843000,-185.87,0.00024658,2]
[424228519,1780675843000,-997.16350561,0.00024292,2]
[424228523,1780675843000,-151.0,0.00024637,2]
[424228525,1780675843000,-2586.85809042,0.00024637,2]
[424228522,1780675843000,-2000.0,0.00024336,2]
[424228518,1780675843000,-217.15233878,0.0002429,2]
[424228524,1780675843000,-240.52273096,0.00024637,2]
[424228521,1780675843000,-848.8,0.00024324,2]
[424228509,1780675843000,-217.15233878,0.0002429,2]
[424228510,1780675843000,-771.01748644,0.0002429,2]
[424228516,1780675843000,-500.0,0.0002429,2]
[424228527,1780675843000,-539.24,0.00024658,2]
[424228517,1780675843000,-200.0,0.0002429,2]
[424228537,1780675843000,-200.0,0.00024838,2]
[424228529,1780675843000,-922.99,0.00024805,7]
[424228539,1780675843000,-2416.07,0.00024843,2]
[424228528,1780675843000,-1000.0,0.00024658,2]
[424228531,1780675843000,-799.54513344,0.00024838,2]
[424228538,1780675843000,-225.18697532,0.00024838,2]
[424228532,1780675843000,-187.78006524,0.00024838,2]
[424228534,1780675843000,-225.18697532,0.00024838,2]
[424228533,1780675843000,-200.0,0.00024838,2]
[424228530,1780675843000,-225.18697532,0.00024838,2]
[424228535,1780675843000,-151.0,0.00024838,2]
[424228536,1780675843000,-500.0,0.00024838,2]
[424228508,1780675843000,-151.0,0.00024237,2]
[424228520,1780675843000,-151.0,0.00024292,2]
[424228515,1780675843000,-200.0,0.0002429,2]
[424228490,1780675843000,-831.51979762,0.00024017,2]